bitfinex/quotes_ETHUSD_20250508
["timestamp","ask_amount","ask_price","bid_price","bid_amount"]
[1746735089260,4.72026834,2118.6,2118.1,0.8046]
[1746735089459,0.10095067,2118.5,2118.1,5.5258124]
[1746735089659,0.10095067,2118.5,2118.2,0.04720266]
[1746735089962,0.10095067,2118.5,2118.2,4.66770423]
[1746735090162,4.72012388,2118.6,2118.2,19.25]
[1746735090362,0.10061103,2118.4,2118.2,19.25]
[1746735090593,4.72033149,2118.5,2118.2,19.25]
[1746735090807,0.10027136,2118.3,2118.2,19.25]
[1746735090973,4.72017052,2118.6,2118.2,19.25]
[1746735091299,0.10095067,2118.5,2118.2,19.25]
[1746735091502,0.10095067,2118.5,2118.2,22.36585368]
[1746735091972,4.8212967,2118.5,2118.2,22.36585368]
[1746735093493,0.10095067,2118.5,2118.1,0.8046]
[1746735093690,4.72053104,2118.5,2118.1,0.8046]
[1746735093989,4.72080739,2118.3,2118.1,0.8046]
[1746735094371,0.09993166,2118.2,2118.1,0.8046]
[1746735094774,4.72080739,2118.3,2118.1,0.8046]
[1746735095094,4.82092117,2118.2,2118.1,0.8046]
[1746735095284,4.82092117,2118.2,2118.0,6.11]
[1746735095285,4.7212124,2118.1,2118.0,6.11]
[1746735095484,4.82080433,2118.1,2118.0,6.11]
[1746735097698,4.82080433,2118.1,2118.0,16.25]
[1746735098093,0.09959193,2118.1,2118.0,16.25]
[1746735098308,4.82080433,2118.1,2118.0,16.25]
[1746735100790,4.72188119,2117.8,2117.7,16.25]
[1746735101115,4.81600171,2117.8,2117.7,16.25]
[1746735106623,4.72284258,2117.4,2117.2,16.25]
[1746735106792,4.72284258,2117.4,2117.3,16.25]
[1746735107416,4.72264379,2117.5,2117.3,16.25]
[1746735107614,4.72146407,2118.0,2117.3,24.90449367]
[1746735107815,0.08815253,2117.5,2117.4,16.25]
[1746735107994,4.7223443,2117.6,2117.4,16.25]
[1746735108195,0.08815253,2117.5,2117.4,16.25]
[1746735108724,4.72220329,2117.7,2117.4,16.25]
[1746735109024,0.08849242,2117.6,2117.4,16.25]
[1746735110902,0.07992845,2117.6,2117.4,16.25]
[1746735111103,4.72225097,2117.7,2117.5,16.25]
[1746735111413,4.72223006,2117.7,2117.5,16.25]
[1746735111617,9.44454173,2117.7,2117.5,16.25]
[1746735111793,4.72232716,2117.6,2117.5,16.25]
[1746735111987,4.72219994,2117.7,2117.5,16.25]
[1746735113835,4.72184648,2117.9,2117.5,16.25]
[1746735114027,4.72184648,2117.9,2117.6,16.25]
[1746735114028,4.72187768,2117.9,2117.6,16.25]
[1746735114330,4.72196406,2117.8,2117.6,16.25]
[1746735114529,4.72155847,2118.0,2117.6,16.25]
[1746735114694,0.7589,2118.4,2117.8,4.72178437]
[1746735114900,4.72090177,2118.3,2117.8,4.72178437]
[1746735115137,4.71950645,2118.9,2118.1,4.72120531]
[1746735115435,3.91657023,2119.1,2118.8,5.88731901]
[1746735115635,3.15767023,2119.1,2118.8,5.88731901]
[1746735115800,3.15767023,2119.2,2118.6,5.06]
[1746735115999,4.71934355,2119.0,2118.6,9.78003746]
[1746735116333,7.87659376,2119.2,2118.8,4.71959381]
[1746735116334,7.87652423,2119.2,2118.8,4.71959381]
[1746735116900,3.15767023,2119.2,2119.0,4.71907772]
[1746735117231,3.15767023,2119.2,2119.1,4.71898447]
[1746735117431,3.15767023,2119.2,2119.0,0.8051]
[1746735117625,3.15767023,2119.2,2119.0,3.8051]
[1746735118347,3.15767023,2119.2,2119.1,4.71898447]
[1746735118631,3.15767023,2119.2,2118.9,11.99731901]
[1746735118632,3.15767023,2119.2,2118.9,6.11]
[1746735118830,4.71920717,2119.0,2118.9,6.11]
[1746735119135,7.87656414,2119.2,2118.9,6.11]
[1746735119435,4.71908429,2119.1,2118.9,6.11]
[1746735119636,5.54275458,2119.0,2118.4,5.07637123]
[1746735119936,4.719671,2118.8,2118.4,5.12357145]
[1746735120100,4.719671,2118.8,2118.4,4.7677438]
[1746735120304,0.8235,2119.0,2118.3,0.8278]
[1746735120534,4.7202874,2118.6,2118.1,9.76910643]
[1746735120731,4.7202874,2118.6,2118.1,13.51466491]
[1746735121333,4.72013652,2118.6,2118.1,8.79355848]
[1746735121540,0.09774448,2119.3,2118.2,3.0]
[1746735121697,0.09774448,2119.3,2119.2,14.4338808]
[1746735121898,7.87408506,2120.3,2119.7,5.88731901]
[1746735122198,7.87408506,2120.3,2119.3,8.88731901]
[1746735122199,4.71759595,2119.8,2119.3,8.88731901]
[1746735122399,4.71759595,2119.8,2119.4,5.041]
[1746735122634,4.71677984,2120.1,2119.5,4.71809166]
[1746735122801,5.58656136,2120.1,2119.6,10.60508543]
[1746735123533,0.8235,2119.7,2118.1,4.33679463]
[1746735123837,0.8235,2119.1,2118.2,0.8278]
[1746735124039,0.55,2118.8,2117.9,6.01694506]
[1746735124332,4.72066179,2118.4,2117.9,6.01694506]
[1746735124533,4.72065315,2118.4,2117.9,12.19514485]
[1746735124703,4.72065315,2118.4,2117.9,6.17819979]
[1746735125098,4.7200492,2118.7,2118.2,4.72097888]
[1746735125323,4.71982863,2118.8,2118.1,4.72113891]
[1746735125528,4.71982863,2118.8,2118.2,4.7207855]
[1746735125834,4.71987047,2118.8,2118.3,4.72074188]
[1746735126005,4.71965263,2118.8,2118.3,4.72074188]
[1746735126400,4.71965263,2118.8,2118.4,4.72052295]
[1746735126611,0.7859,2120.0,2119.2,0.8225]
[1746735126813,0.7859,2120.3,2119.6,6.01694506]
[1746735127014,4.7165692,2120.2,2119.6,10.73481258]
[1746735127316,4.71655668,2120.2,2119.7,4.71764872]
[1746735127649,4.71653617,2120.2,2119.7,4.71758492]
[1746735128756,0.7859,2120.3,2119.6,6.06411797]
[1746735129040,0.7859,2120.6,2119.6,8.07217067]
[1746735129246,4.71643289,2120.3,2119.8,3.0]
[1746735129537,4.71643289,2120.3,2119.8,7.71741717]
[1746735129740,0.55,2120.2,2119.0,6.76904506]
[1746735129902,4.71874511,2119.3,2119.1,3.0]
[1746735130120,4.71837511,2119.4,2119.0,5.022]
[1746735130346,4.71820005,2119.5,2119.0,5.022]
[1746735130662,4.71742617,2119.8,2119.0,5.022]
[1746735130960,4.71742617,2119.8,2119.0,3.0]
[1746735131147,4.71836846,2119.4,2119.0,3.0]
[1746735131863,0.77174262,2119.7,2118.9,3.0]
[1746735132025,4.71822679,2119.5,2119.0,4.71919417]
[1746735132225,4.71846737,2119.4,2118.9,12.7362996]
[1746735133522,4.71846737,2119.4,2118.9,12.7322996]
[1746735134847,4.71854022,2119.3,2118.9,12.7322996]
[1746735135027,4.71854022,2119.3,2119.0,16.25]
[1746735135221,0.55,2119.0,2118.1,0.8189]
[1746735135458,4.72056445,2118.4,2117.9,0.8189]
[1746735135760,0.8202,2119.0,2118.1,6.01694506]
[1746735135932,4.71989812,2118.7,2118.3,4.72063424]
[1746735136134,0.8202,2119.0,2118.4,6.01694506]
[1746735136135,4.71930867,2119.0,2118.4,6.01694506]
[1746735136469,4.71951846,2118.9,2118.5,0.8067]
[1746735136633,4.71895893,2119.2,2118.5,3.8067]
[1746735136818,0.8074,2119.3,2118.8,4.71950371]
[1746735137019,4.71862868,2119.3,2118.7,6.01694506]
[1746735137264,4.71862868,2119.3,2118.8,4.76665473]
[1746735137663,4.71862868,2119.3,2118.9,4.71942362]
[1746735137875,8.26809389,2119.5,2118.6,1.48306451]
[1746735138079,2.72133999,2119.4,2118.5,0.8067]
[1746735138282,4.71853914,2119.3,2118.5,5.52691359]
[1746735138572,4.7194514,2118.9,2118.5,0.8067]
[1746735138731,4.71975997,2118.8,2118.5,0.8067]
[1746735138931,4.71955103,2118.9,2118.5,0.8067]
[1746735139375,4.72029371,2118.6,2118.2,6.79304506]
[1746735139534,4.72066352,2118.4,2118.2,6.01694506]
[1746735139735,0.55,2118.7,2117.7,6.01694506]
[1746735139956,4.7209388,2118.3,2117.8,5.44830399]
[1746735140155,4.72101944,2118.2,2117.8,0.67930451]
[1746735140469,4.72101944,2118.2,2117.8,6.78930451]
[1746735140634,4.72101944,2118.2,2117.8,11.5111824]
[1746735140835,4.72090363,2118.3,2117.8,11.51109299]
[1746735141034,4.72090363,2118.3,2117.9,3.27356712]
[1746735141366,0.52696526,2118.6,2118.1,5.53802568]
[1746735141367,4.72032023,2118.6,2118.1,5.53802568]
[1746735141579,4.72006765,2118.7,2118.1,6.9269]
[1746735141782,4.71978513,2118.8,2118.3,6.01694506]
[1746735141959,4.71978513,2118.8,2118.4,4.7205115]
[1746735142163,4.71952011,2118.9,2118.4,6.27094016]
[1746735142351,4.71952011,2118.9,2118.4,6.27098249]
[1746735142670,4.71952011,2118.9,2118.4,10.99141345]
[1746735142869,4.71920717,2119.0,2118.3,6.11]
[1746735143074,4.72006235,2118.7,2118.3,6.11]
[1746735143270,4.7201943,2118.6,2118.3,6.11]
[1746735143474,4.71981303,2118.8,2118.3,10.83076138]
[1746735143642,4.71998278,2118.7,2118.3,10.83072128]
[1746735143838,4.71998278,2118.7,2118.3,13.61117791]
[1746735144188,4.72019803,2118.6,2118.3,6.11]
[1746735144474,4.71964898,2118.9,2118.4,10.73738872]
[1746735144771,4.71987644,2118.7,2118.4,6.01694506]
[1746735144957,4.72025693,2118.6,2118.4,6.01694506]
[1746735145166,4.72020817,2118.6,2118.4,6.01694506]
[1746735145475,4.72075707,2118.4,2118.1,6.83384506]
[1746735145695,4.72087345,2118.3,2118.1,10.74054952]
[1746735146045,4.72098951,2118.2,2118.1,10.74054952]
[1746735146245,4.72098951,2118.2,2118.1,0.8169]
[1746735146494,4.7212124,2118.1,2117.9,3.27356712]
[1746735146786,4.7212124,2118.1,2117.9,3.0]
[1746735146946,4.72133517,2118.1,2117.9,3.0]
[1746735147481,4.72143531,2118.0,2117.8,6.83434506]
[1746735147646,4.72185086,2117.9,2117.6,4.984]
[1746735147844,5.27032098,2118.5,2117.6,4.984]
[1746735147845,4.72196589,2117.8,2117.7,0.42180292]
[1746735148175,4.7217576,2117.9,2117.7,0.42180292]
[1746735148342,4.72176105,2117.9,2117.7,0.42180292]
[1746735148543,4.72188119,2117.8,2117.7,0.42180292]
[1746735148879,5.52128119,2117.8,2117.7,0.42180292]
[1746735149037,4.72188119,2117.8,2117.7,0.42180292]
[1746735149241,4.72184252,2117.9,2117.4,5.59349653]
[1746735149443,4.72184252,2117.9,2117.5,1.77204416]
[1746735150081,4.72189429,2117.8,2117.5,1.77204416]
[1746735150947,4.72177172,2117.9,2117.5,6.49452747]
[1746735151252,4.72177172,2117.9,2117.5,1.77204416]
[1746735152061,4.72153674,2118.0,2117.5,1.77204416]
[1746735152379,4.7218034,2117.9,2117.5,1.77204416]
[1746735152975,4.72184977,2117.9,2117.5,1.77204416]
[1746735154282,4.72176986,2117.9,2117.5,1.77204416]
[1746735154769,4.72176986,2117.9,2117.5,6.49450126]
[1746735155568,0.7994,2118.1,2117.5,6.49450846]
[1746735155964,4.72094481,2118.3,2117.9,6.01694506]
[1746735156365,4.72133604,2118.1,2117.9,6.01694506]
[1746735156969,4.72006571,2118.7,2118.2,4.72088399]
[1746735157167,4.7184088,2119.4,2118.3,22.26694506]
[1746735157168,4.71942989,2118.9,2118.3,22.26694506]
[1746735157372,4.72025941,2118.6,2118.3,22.26694506]
[1746735157884,5.74058418,2118.9,2118.3,22.26694506]
[1746735157885,4.7205438,2118.4,2118.3,16.25]
[1746735158182,0.7731,2119.1,2118.5,4.72022929]
[1746735158381,4.71885945,2119.2,2118.7,4.71970362]
[1746735158683,4.71885945,2119.2,2118.8,16.25]
[1746735159064,4.71899866,2119.1,2118.8,16.25]
[1746735159448,3.96197023,2119.4,2118.9,6.06413716]
[1746735159449,7.87614355,2119.4,2118.9,6.06413716]
[1746735159648,7.87614355,2119.4,2118.9,6.01694506]
[1746735159847,3.15767023,2119.4,2119.3,4.71853914]
[1746735160079,3.15767023,2119.4,2119.3,20.96853914]
[1746735160282,3.15767023,2119.4,2119.3,23.96853914]
[1746735160679,3.15767023,2119.4,2119.0,0.8053]
[1746735160896,4.71831906,2119.4,2119.0,3.8053]
[1746735161092,0.7974,2119.7,2119.1,10.73588085]
[1746735161093,4.71820135,2119.5,2119.1,10.73588085]
[1746735161308,4.71796262,2119.6,2119.1,6.01694506]
[1746735161502,4.7185286,2119.4,2119.1,10.97194506]
[1746735161807,0.7974,2119.7,2119.1,10.97194506]
[1746735161808,4.71797111,2119.6,2119.1,6.01694506]
[1746735162103,4.71797111,2119.6,2119.1,10.78292835]
[1746735162271,4.71797111,2119.6,2119.1,10.73574492]
[1746735162471,4.71870957,2119.3,2119.0,0.8053]
[1746735162672,4.71880134,2119.2,2119.0,0.8053]
[1746735163018,4.71930351,2119.0,2118.7,0.8048]
[1746735163200,4.71930351,2119.0,2118.7,5.7548]
[1746735163516,4.71909647,2119.1,2118.7,3.8048]
[1746735163698,4.71885166,2119.2,2118.7,12.88770321]
[1746735163875,4.71809389,2119.5,2118.6,11.059]
[1746735164080,0.7974,2119.7,2119.0,6.01694506]
[1746735164281,4.71843469,2119.4,2119.0,6.01694506]
[1746735164607,4.71844105,2119.4,2119.0,6.01694506]
[1746735164990,4.71844105,2119.4,2119.0,10.73612472]
[1746735165192,4.71800121,2119.6,2119.1,4.71887718]
[1746735165413,4.71829147,2119.5,2119.1,16.25]
[1746735165627,4.71840362,2119.4,2119.1,16.25]
[1746735166207,0.7974,2119.7,2119.1,16.25]
[1746735166517,4.71801925,2119.6,2119.1,20.96879287]
[1746735166814,4.71801925,2119.6,2119.2,0.04718552]
[1746735167183,8.51439642,2120.0,2119.1,19.02905379]
[1746735167382,4.717584,2119.8,2119.2,16.25]
[1746735167590,4.71722563,2119.9,2119.5,5.53786459]
[1746735167787,0.09989915,2120.1,2119.5,0.8198]
[1746735167990,4.81677572,2120.1,2119.6,22.26694506]
[1746735168216,0.09989915,2120.1,2119.8,4.71739654]
[1746735169524,0.0446917,2120.5,2120.3,4.71625216]
[1746735169696,0.0446917,2120.5,2120.2,3.0]
[1746735169893,4.71641069,2120.3,2120.1,16.15010085]
[1746735170214,4.71653617,2120.2,2120.0,4.935]
[1746735170523,4.71675864,2120.1,2120.0,4.935]
[1746735170725,4.71641462,2120.3,2120.0,4.935]
[1746735170906,4.71671575,2120.2,2119.7,0.8198]
[1746735171106,4.71671575,2120.2,2119.8,10.78151592]
[1746735171284,4.71618707,2120.4,2119.9,4.76435986]
[1746735171490,4.71618707,2120.4,2119.9,4.71719301]
[1746735171921,0.0446917,2120.5,2120.2,4.7164791]
[1746735172089,0.0446917,2120.5,2120.3,3.86695728]
[1746735172288,0.0446917,2120.5,2120.3,3.8198]
[1746735172491,0.0446917,2120.5,2120.3,0.8198]
[1746735173418,0.0446917,2120.5,2120.3,5.53602904]
[1746735173623,0.0446917,2120.5,2120.3,0.8198]
[1746735173830,0.0446917,2120.5,2120.3,2.76772339]
[1746735174119,0.0446917,2120.5,2120.3,7.48392117]
[1746735174320,0.0446917,2120.5,2120.4,4.7160913]
[1746735174619,0.0446917,2120.5,2120.4,3.04715444]
[1746735174832,0.0446917,2120.5,2120.4,30.0301908]
[1746735175022,0.0446917,2120.5,2120.4,34.22703743]
[1746735175827,0.0446917,2120.5,2120.4,38.89972943]
[1746735176943,0.0446917,2120.5,2120.4,34.99593743]
[1746735177147,0.0446917,2120.5,2120.4,30.75193636]
[1746735177816,0.0446917,2120.5,2120.4,23.03584506]
[1746735178017,0.1386399,2120.5,2120.4,30.75193636]
[1746735178216,0.0446917,2120.5,2120.4,30.75193636]
[1746735180241,4.71508428,2120.9,2120.6,6.0653083]
[1746735180410,4.71508428,2120.9,2120.7,16.2053083]
[1746735180614,4.8101666,2120.8,2120.7,16.2053083]
[1746735181010,4.8101666,2120.8,2120.5,16.2053083]
[1746735181011,4.71564651,2120.6,2120.5,16.2053083]
[1746735181528,4.80993361,2120.6,2120.5,16.2053083]
[1746735182314,0.0942871,2120.6,2120.5,16.2053083]
[1746735182646,0.7895,2120.9,2120.5,16.2053083]
[1746735182647,5.50461904,2120.9,2120.5,16.2053083]
[1746735183147,0.09129826,2120.8,2120.5,16.2053083]
[1746735183345,4.71464632,2121.1,2120.8,3.0]
[1746735183549,5.50395109,2121.2,2120.8,3.0]
[1746735183852,4.71445109,2121.2,2120.9,16.2053083]
[1746735184052,4.71410883,2121.3,2121.0,3.04559949]
[1746735184348,4.71410883,2121.3,2121.0,2.99845377]
[1746735184537,4.71410883,2121.3,2120.9,20.92018063]
[1746735184538,4.71475719,2121.0,2120.9,16.2053083]
[1746735185330,4.71389303,2121.4,2120.9,16.2053083]
[1746735185529,4.71463832,2121.1,2121.0,16.2053083]
[1746735186953,4.71444178,2121.2,2121.0,16.2053083]
[1746735187125,4.71453491,2121.1,2121.0,16.2053083]
[1746735188221,5.48443491,2121.1,2121.0,16.2053083]
[1746735188420,0.55,2120.8,2120.0,0.8179]
[1746735188633,0.7699,2121.0,2120.3,0.8179]
[1746735188836,4.71531916,2120.8,2120.3,5.58128547]
[1746735189045,7.71448231,2121.2,2120.3,5.58128547]
[1746735189046,5.4841429,2121.3,2120.8,4.71509083]
[1746735189251,4.71433876,2121.2,2120.8,5.54699083]
[1746735189447,4.71516664,2120.9,2120.6,17.0372083]
[1746735189648,4.7151694,2120.9,2120.6,16.2053083]
[1746735190153,4.71520957,2120.8,2120.6,16.2053083]
[1746735190366,4.71520957,2120.8,2120.5,6.01694506]
[1746735190560,4.71511306,2120.9,2120.5,6.01694506]
[1746735190759,4.71520617,2120.8,2120.5,6.01694506]
[1746735191134,4.71564651,2120.6,2120.5,6.01694506]
[1746735191336,4.71559449,2120.7,2120.3,3.8319]
[1746735191563,4.71559449,2120.7,2120.3,11.62515508]
[1746735191950,4.71575885,2120.6,2120.3,6.90895891]
[1746735192141,4.71554049,2120.7,2120.3,6.90895891]
[1746735192570,5.50925759,2121.1,2120.2,26.93858756]
[1746735192571,4.71603696,2120.5,2120.2,16.2053083]
[1746735192745,4.71618423,2120.4,2120.2,16.2053083]
[1746735193343,4.71674892,2120.2,2119.8,16.2053083]
[1746735193544,0.7904,2120.5,2119.8,16.2053083]
[1746735193545,5.50630364,2120.5,2120.1,4.71666155]
[1746735193745,4.71590364,2120.5,2120.1,4.71666155]
[1746735193947,4.71590364,2120.5,2120.0,4.7168423]
[1746735194134,4.71617723,2120.4,2120.0,4.7168423]
[1746735194458,4.71617723,2120.4,2120.0,7.88248548]
[1746735195165,0.806,2120.7,2120.1,0.41998804]
[1746735195166,4.71564651,2120.6,2120.1,0.41998804]
[1746735195333,4.71649174,2120.3,2120.1,0.41998804]
[1746735195542,4.7156994,2120.6,2120.1,0.41998804]
[1746735195739,4.71650898,2120.3,2120.1,0.41998804]
[1746735195938,4.71653617,2120.2,2120.1,0.41998804]
[1746735196647,4.71653617,2120.2,2120.0,0.41998804]
[1746735197577,0.812,2120.5,2120.0,0.41998804]
[1746735197736,4.71618852,2120.4,2120.1,5.87450645]
[1746735198072,4.7148532,2121.0,2120.5,4.71567447]
[1746735198274,4.7148532,2121.0,2120.7,5.87450645]
[1746735198448,4.7148532,2121.0,2120.8,16.2053083]
[1746735199065,4.7148532,2121.0,2120.9,16.2053083]
[1746735200069,6.20996605,2121.0,2120.9,16.2053083]
[1746735200576,1.49511285,2121.0,2120.3,16.2053083]
[1746735200874,4.71575922,2120.6,2120.3,16.2053083]
[1746735201069,4.7160913,2120.4,2120.3,16.2053083]
[1746735201274,4.7160913,2120.4,2119.5,0.813]
[1746735201275,4.71696787,2120.1,2119.5,0.813]
[1746735201570,4.71610642,2120.4,2119.6,9.582914]
[1746735201783,4.71623898,2120.4,2119.9,4.71701874]
[1746735201943,4.71583612,2120.6,2120.1,4.71665446]
[1746735202143,4.71579629,2120.6,2120.1,4.76381685]
[1746735202675,4.7154604,2120.7,2120.3,4.71630106]
[1746735202877,5.48741144,2120.8,2120.3,4.71630106]
[1746735203058,5.48755613,2120.8,2120.4,0.42177141]
[1746735203257,4.71557292,2120.7,2120.4,0.42177141]
[1746735203657,4.71546873,2120.7,2120.4,0.42177141]
[1746735205783,4.71487163,2121.0,2120.6,0.42177141]
[1746735206282,4.7150228,2120.9,2120.6,0.42177141]
[1746735206579,4.71513721,2120.9,2120.7,0.42177141]
[1746735207383,4.71520181,2120.8,2120.6,0.42177141]
[1746735207581,4.71511778,2120.9,2120.6,0.42177141]
[1746735207756,9.43030112,2120.9,2120.6,0.42177141]
[1746735208077,5.47152415,2120.7,2120.6,0.42177141]
[1746735208476,4.7158046,2120.6,2120.4,6.0653083]
[1746735209083,9.43165345,2120.6,2120.4,6.0653083]
[1746735209289,4.71586889,2120.5,2120.4,6.0653083]
[1746735209581,4.71631372,2120.3,2120.2,16.2053083]
[1746735210358,4.71686032,2120.1,2119.9,16.2053083]
[1746735210672,4.71663186,2120.2,2120.0,16.2053083]
[1746735210984,0.7561,2120.7,2119.8,0.833]
[1746735210985,4.71678262,2120.1,2119.8,0.833]
[1746735211186,4.71698113,2120.0,2119.9,16.25]
[1746735211352,4.71685908,2120.1,2119.9,16.25]
[1746735212387,4.71640954,2120.3,2119.9,18.34676294]
[1746735212388,4.71643717,2120.3,2119.9,18.34676294]
[1746735212688,1.9322,2120.0,2119.9,23.06396658]
[1746735213077,1.9322,2120.0,2119.9,18.34676294]
[1746735213594,1.9322,2120.0,2119.9,16.25]
[1746735213780,1.9322,2120.0,2119.9,20.96720364]
[1746735215094,1.9322,2120.0,2119.9,23.96720364]
[1746735215296,8.62742301,2121.0,2120.5,4.71577378]
[1746735215592,4.71542415,2120.7,2120.6,14.3178]
[1746735216680,4.71631372,2120.3,2120.2,19.1498]
[1746735217073,4.71631372,2120.3,2120.2,14.3178]
[1746735217271,4.716161,2120.4,2120.2,14.3178]
[1746735217272,0.7548,2120.6,2120.2,14.3178]
[1746735217570,4.71622103,2120.4,2120.2,14.3178]
[1746735217768,4.71631372,2120.3,2120.2,14.3178]
[1746735221067,4.71698113,2120.0,2119.9,14.3178]
[1746735221409,4.71764872,2119.7,2119.6,14.3178]
[1746735221598,4.71764872,2119.7,2119.4,14.3178]
[1746735222103,4.71799032,2119.6,2119.4,14.3178]
[1746735222265,4.71764872,2119.7,2119.4,14.3178]
[1746735222266,4.71781117,2119.7,2119.4,14.3178]
[1746735222467,4.71758764,2119.8,2119.4,28.91707106]
[1746735222893,4.71768997,2119.7,2119.4,24.19878687]
[1746735223101,4.71768997,2119.7,2119.4,20.19577735]
[1746735223271,4.71766547,2119.7,2119.4,20.19577735]
[1746735223814,4.71766547,2119.7,2119.4,14.3178]
[1746735224169,4.7179009,2119.6,2119.4,14.3178]
[1746735224413,0.55,2120.0,2119.4,14.3178]
[1746735224709,4.7181687,2119.5,2119.1,9.530855]
[1746735224913,4.7181687,2119.5,2119.2,16.25]
[1746735225785,4.7181687,2119.5,2119.1,13.33082899]
[1746735225786,4.71840739,2119.4,2119.3,16.25]
[1746735226199,0.8137,2119.9,2119.3,16.25]
[1746735226493,4.71712091,2120.0,2119.5,11.50388447]
[1746735226671,4.71692686,2120.1,2119.6,20.96772628]
[1746735226873,4.71703058,2120.0,2119.6,20.96772628]
[1746735227106,1.3479,2119.9,2119.3,6.11]
[1746735227409,4.71742914,2119.8,2119.3,6.11]
[1746735227572,4.7183165,2119.4,2119.3,6.11]
[1746735227772,4.7183165,2119.4,2119.3,16.25]
[1746735231627,4.71876179,2119.2,2119.1,16.25]
[1746735232284,4.718616,2119.3,2119.1,16.25]
[1746735233196,5.49199367,2119.6,2119.1,16.25]
[1746735233492,4.71873277,2119.3,2119.1,16.25]
[1746735233813,6.04119304,2119.6,2119.1,16.25]
[1746735234017,4.71873645,2119.3,2119.1,16.25]
[1746735234810,4.71876179,2119.2,2119.1,16.25]
[1746735241024,4.71920717,2119.0,2118.9,16.25]
[1746735243440,0.7819,2119.4,2118.9,16.25]
[1746735243740,4.71871941,2119.3,2119.0,3.7866]
[1746735244648,4.71842245,2119.4,2119.0,8.50578236]
[1746735244819,0.00507353,2119.6,2119.5,4.71809389]
[1746735245004,0.00507353,2119.6,2119.5,13.59791576]
[1746735245203,0.00507353,2119.6,2119.5,16.12177274]
[1746735245408,0.00507353,2119.6,2119.5,27.98115253]
[1746735246022,0.00507353,2119.6,2119.5,28.40262932]
[1746735246454,0.00507353,2119.6,2119.5,28.55008678]
[1746735246927,0.00507353,2119.6,2119.5,34.66008678]
[1746735249735,0.00507353,2119.6,2119.5,34.91312469]
[1746735250941,0.00507353,2119.6,2119.5,34.66008678]
[1746735252050,4.7168408,2120.1,2119.8,3.0]
[1746735252249,4.7168408,2120.1,2119.9,16.24492647]
[1746735252819,4.71698113,2120.0,2119.9,16.24492647]
[1746735253207,4.71698113,2120.0,2119.4,6.10492647]
[1746735253208,4.71809389,2119.5,2119.4,6.10492647]
[1746735253412,4.71793904,2119.6,2119.4,16.24492647]
[1746735253935,4.71809389,2119.5,2119.4,16.24492647]
[1746735254250,4.71888928,2119.2,2119.0,16.24492647]
[1746735254413,4.71866048,2119.3,2119.0,16.24492647]
[1746735254613,4.71886939,2119.2,2119.0,16.24492647]
[1746735255411,4.71886939,2119.2,2119.1,16.24492647]
[1746735255412,4.71876179,2119.2,2119.1,16.24492647]
[1746735255635,4.71934368,2119.0,2118.7,16.24492647]
[1746735256042,4.71933824,2119.0,2118.7,16.24492647]
[1746735256238,4.7187761,2119.2,2118.7,16.24492647]
[1746735256470,4.71934002,2119.0,2118.7,16.24492647]
[1746735256612,9.4387577,2119.0,2118.7,16.24492647]
[1746735256810,4.71965263,2118.8,2118.7,16.24492647]
[1746735257621,4.72009817,2118.6,2118.5,6.10492647]
[1746735257845,4.72042787,2118.5,2118.0,20.96620034]
[1746735258151,4.71965263,2118.8,2118.0,3.76425268]
[1746735258322,4.72086716,2118.3,2118.0,0.0472077]
[1746735258512,0.826,2118.5,2117.9,0.8203]
[1746735258718,0.826,2118.7,2118.0,0.04720901]
[1746735258919,4.72065131,2118.4,2118.0,0.04720901]
[1746735259230,4.72079015,2118.3,2117.9,4.18172274]
[1746735259547,0.826,2119.0,2118.2,5.87982187]
[1746735259751,4.71953643,2118.9,2118.3,4.72065673]
[1746735260057,4.71975789,2118.8,2118.3,4.72065673]
[1746735260355,4.71956194,2118.9,2118.4,5.55141897]
[1746735260551,0.826,2119.0,2118.7,4.71977686]
[1746735260729,4.71900425,2119.1,2118.5,4.76743381]
[1746735260730,4.71943976,2118.9,2118.5,4.76743381]
[1746735261131,4.71943976,2118.9,2118.4,11.89952442]
[1746735261327,0.7982,2119.2,2118.4,0.8309]
[1746735261544,0.7982,2119.2,2118.1,13.27642022]
[1746735261545,4.72026126,2118.6,2118.1,13.27642022]
[1746735261861,4.72026126,2118.6,2118.2,4.7681071]
[1746735262058,5.47930875,2118.7,2118.2,4.7681071]
[1746735262421,4.7201198,2118.6,2118.2,4.7681071]
[1746735262759,4.72038604,2118.5,2118.1,8.5553]
[1746735263063,4.72038604,2118.5,2118.1,3.0]
[1746735263243,4.72054636,2118.4,2118.1,3.0]
[1746735263559,4.72019276,2118.6,2118.2,16.24492647]
[1746735263726,1.30723088,2118.7,2118.2,16.24492647]
[1746735263931,4.7204513,2118.5,2118.2,16.24492647]
[1746735264146,1.30723088,2118.7,2118.2,16.24492647]
[1746735264147,0.7593,2118.7,2118.2,16.24492647]
[1746735264456,4.72011664,2118.6,2118.2,20.965706]
[1746735264644,5.47926705,2118.7,2118.2,20.965706]
[1746735264840,4.72016559,2118.6,2118.2,20.965706]
[1746735265359,4.72016559,2118.6,2118.2,16.24492647]
[1746735265521,4.72016559,2118.6,2118.2,20.96584842]
[1746735265723,4.72033369,2118.5,2118.2,16.24492647]
[1746735265918,4.71974683,2118.8,2118.2,16.24492647]
[1746735266150,4.71990976,2118.7,2118.2,23.83464477]
[1746735266550,4.72013299,2118.6,2118.2,23.83464477]
[1746735266856,4.71996653,2118.7,2118.3,4.72073633]
[1746735267066,4.71976439,2118.8,2118.3,4.72073633]
[1746735267067,0.7794,2119.6,2118.5,5.87982187]
[1746735267259,4.71829269,2119.5,2119.0,4.7190749]
[1746735267460,4.7183165,2119.4,2118.3,3.64949116]
[1746735267658,4.71979024,2118.8,2118.3,7.72065746]
[1746735267847,4.71954461,2118.9,2118.3,12.63775363]
[1746735268165,4.71954461,2118.9,2118.5,4.72028568]
[1746735268339,4.71968068,2118.8,2118.4,4.72044063]
[1746735268664,4.71961903,2118.9,2118.4,4.72044063]
[1746735269465,4.71966344,2118.8,2118.3,17.35841257]
[1746735269625,4.71997016,2118.7,2118.3,17.35841257]
[1746735269823,4.71921145,2119.0,2118.3,3.0]
[1746735270163,0.7593,2118.7,2118.1,0.762]
[1746735270531,4.72066387,2118.4,2118.1,0.762]
[1746735270738,4.7206851,2118.4,2118.1,0.762]
[1746735270943,4.72077641,2118.3,2118.1,0.762]
[1746735271255,3.7593,2119.0,2118.1,0.762]
[1746735271426,4.72046158,2118.5,2118.1,0.762]
[1746735271934,4.72019504,2118.6,2118.1,5.48320025]
[1746735272260,4.71966854,2118.8,2118.4,4.72039879]
[1746735272555,4.71966854,2118.8,2118.4,4.72042597]
[1746735272939,5.47867243,2119.0,2118.5,4.72021348]